bitfinex-derivatives/quotes_BTCF0:USTF0_20240903
["timestamp","ask_amount","ask_price","bid_price","bid_amount"]
[1725387156977,0.086526,57800.0,57799.0,0.087527]
[1725387157181,0.086526,57800.0,57799.0,0.088527]
[1725387160378,0.086526,57800.0,57799.0,0.087527]
[1725387161593,0.25701009,57801.0,57800.0,0.086526]
[1725387162091,0.4390295,57801.0,57800.0,0.07777341]
[1725387162293,0.4390295,57801.0,57799.0,0.001]
[1725387162294,0.173052,57800.0,57799.0,0.001]
[1725387162492,0.96005331,57800.0,57799.0,0.001]
[1725387162688,0.085533,57796.0,57795.0,0.086532]
[1725387162890,0.18142741,57796.0,57795.0,0.086532]
[1725387163082,0.18042741,57796.0,57795.0,0.086532]
[1725387163286,0.17942741,57796.0,57795.0,0.086532]
[1725387163996,0.26942741,57796.0,57795.0,0.086532]
[1725387167398,0.09589441,57796.0,57795.0,0.173066]
[1725387167599,0.22993048,57796.0,57795.0,0.173066]
[1725387167799,0.28304757,57796.0,57795.0,0.173066]
[1725387168293,0.28304757,57796.0,57795.0,0.086532]
[1725387169100,0.18755316,57796.0,57795.0,0.086532]
[1725387169307,0.0004,57796.0,57795.0,0.086532]
[1725387171599,0.0004,57796.0,57795.0,0.413066]
[1725387172300,0.0004,57796.0,57795.0,0.4996]
[1725387173593,0.0004,57796.0,57795.0,0.413066]
[1725387174292,0.0004,57796.0,57795.0,0.4996]
[1725387174492,0.0004,57796.0,57795.0,0.5924]
[1725387175302,0.0004,57796.0,57795.0,1.11148]
[1725387175701,0.0004,57796.0,57795.0,1.71148]
[1725387176596,0.0004,57796.0,57795.0,1.11148]
[1725387177695,0.01756548,57805.0,57804.0,0.17304]
[1725387177696,0.00025952,57805.0,57804.0,0.17304]
[1725387177997,0.004,57817.0,57816.0,0.086502]
[1725387178198,0.1835,57819.0,57818.0,0.086499]
[1725387178395,0.1835,57819.0,57818.0,0.326499]
[1725387178597,0.0892,57819.0,57818.0,0.412998]
[1725387178905,0.01734835,57821.0,57820.0,0.086496]
[1725387179101,0.00025904,57824.0,57823.0,0.086492]
[1725387180398,0.016914,57824.0,57823.0,0.087492]
[1725387181410,0.256914,57824.0,57823.0,0.087492]
[1725387181703,0.343404,57824.0,57823.0,0.002]
[1725387182307,0.343404,57824.0,57823.0,0.001]
[1725387182510,0.103404,57824.0,57823.0,0.088492]
[1725387183511,0.016914,57824.0,57823.0,0.088492]
[1725387183702,0.00025904,57824.0,57823.0,0.174984]
[1725387184399,0.15773551,57824.0,57823.0,0.174984]
[1725387184596,0.09570203,57824.0,57823.0,0.174984]
[1725387184797,0.09570203,57824.0,57823.0,0.088492]
[1725387185106,0.15773551,57824.0,57823.0,0.448292]
[1725387185311,0.09570203,57824.0,57823.0,0.449292]
[1725387186604,0.54299203,57824.0,57823.0,0.002]
[1725387186810,1.81035551,57824.0,57823.0,0.002]
[1725387187002,1.81035551,57824.0,57823.0,0.00180001]
[1725387188497,0.086499,57818.0,57817.0,0.349301]
[1725387188700,0.18234199,57818.0,57817.0,0.349301]
[1725387188911,0.24437547,57818.0,57817.0,0.2628]
[1725387189212,0.33717547,57818.0,57817.0,0.2628]
[1725387189406,0.33717547,57818.0,57817.0,0.349301]
[1725387189605,0.33719255,57818.0,57817.0,0.350301]
[1725387189806,0.33719255,57818.0,57817.0,0.351301]
[1725387190011,0.27515907,57818.0,57817.0,0.351301]
[1725387191198,0.27515907,57818.0,57817.0,0.2648]
[1725387191511,0.09586007,57818.0,57817.0,0.437802]
[1725387191716,0.00025904,57824.0,57823.0,0.086492]
[1725387191912,5.2e-07,57835.0,57832.0,0.086478]
[1725387192109,5.2e-07,57835.0,57823.0,0.687292]
[1725387192110,0.22338234,57840.0,57839.0,0.086468]
[1725387192412,0.0868,57845.0,57839.0,0.6008]
[1725387192620,0.0868,57845.0,57844.0,0.08646]
[1725387192915,0.09550603,57845.0,57844.0,0.08646]
[1725387193504,0.11247618,57845.0,57844.0,0.08646]
[1725387195411,0.11247618,57845.0,57844.0,0.08746]
[1725387196115,0.11247618,57845.0,57844.0,0.08846]
[1725387196314,0.004,57852.0,57851.0,0.08645]
[1725387196510,0.77510062,57862.0,57852.0,0.086449]
[1725387196511,0.3608,57858.0,57852.0,0.086449]
[1725387196715,0.41788408,57853.0,57852.0,0.086449]
[1725387197721,0.41788408,57853.0,57852.0,0.087449]
[1725387197910,0.40933124,57853.0,57852.0,0.087449]
[1725387198510,0.33933124,57853.0,57852.0,0.087449]
[1725387198915,0.01653124,57853.0,57852.0,0.15616452]
[1725387199123,0.44724,57858.0,57852.0,0.15616452]
[1725387199124,0.086441,57857.0,57854.0,0.086444]
[1725387199324,0.3608,57858.0,57855.0,0.086444]
[1725387199325,0.086443,57856.0,57855.0,0.086444]
[1725387199507,0.086447,57853.0,57852.0,0.088448]
[1725387199707,0.747247,57853.0,57852.0,0.002]
[1725387199915,1.952654,57853.0,57852.0,0.002]
[1725387200120,1.952654,57853.0,57852.0,0.001]
[1725387200417,0.1719,57851.0,57850.0,0.00025928]
[1725387200617,0.69086,57851.0,57850.0,0.00025928]
[1725387200821,1.20341,57851.0,57850.0,0.00025928]
[1725387201016,0.08485,57851.0,57850.0,0.00025928]
[1725387201409,1.20341,57851.0,57850.0,0.00025928]
[1725387201615,1.30689324,57851.0,57850.0,0.00025928]
[1725387202420,1.35489324,57851.0,57850.0,0.00025928]
[1725387203014,1.35589324,57851.0,57850.0,0.00225928]
[1725387203333,0.086465,57841.0,57840.0,0.004]
[1725387203516,0.086465,57841.0,57836.0,0.086471]
[1725387203517,0.086471,57837.0,57836.0,0.086471]
[1725387203709,0.085871,57837.0,57836.0,0.086471]
[1725387203910,0.0942,57840.0,57831.0,0.3608]
[1725387204118,0.086473,57836.0,57835.0,0.086472]
[1725387204421,0.085473,57836.0,57835.0,0.086472]
[1725387205626,0.003,57837.0,57836.0,0.086472]
[1725387205828,0.005,57837.0,57836.0,0.087472]
[1725387206324,0.00065851,57841.0,57840.0,0.086466]
[1725387206526,0.02065851,57841.0,57840.0,0.15518152]
[1725387207225,0.02065851,57841.0,57840.0,0.086466]
[1725387207422,0.02065851,57841.0,57840.0,0.15518152]
[1725387208220,0.02065851,57841.0,57840.0,0.086466]
[1725387208428,0.10712351,57841.0,57840.0,0.086466]
[1725387208613,0.10912351,57841.0,57840.0,0.087466]
[1725387208822,0.11312351,57841.0,57840.0,0.088466]
[1725387210125,0.11312351,57841.0,57840.0,0.002]
[1725387210330,0.02665851,57841.0,57840.0,0.088466]
[1725387210527,0.02665851,57841.0,57840.0,0.174932]
[1725387210727,0.02665851,57841.0,57840.0,0.693612]
[1725387210926,0.03,57847.0,57846.0,0.086458]
[1725387211123,0.106456,57847.0,57846.0,0.086458]
[1725387211731,0.02,57847.0,57846.0,0.086458]
[1725387212033,0.086453,57849.0,57848.0,0.086455]
[1725387214236,0.086448,57853.0,57852.0,0.086448]
[1725387214435,0.29185414,57853.0,57852.0,0.086448]
[1725387216143,0.29185414,57853.0,57852.0,0.087448]
[1725387216736,0.29285414,57853.0,57852.0,0.088448]
[1725387217138,0.23978615,57853.0,57852.0,0.002]
[1725387217438,0.60058615,57853.0,57852.0,0.002]
[1725387217640,0.68718615,57853.0,57852.0,0.002]
[1725387218245,0.74025664,57853.0,57852.0,0.002]
[1725387218749,0.82670464,57853.0,57852.0,0.002]
[1725387218943,0.91490464,57853.0,57852.0,0.002]
[1725387219440,1.06880243,57853.0,57852.0,0.002]
[1725387219634,1.06880243,57853.0,57852.0,0.001]
[1725387219635,1.06780243,57853.0,57852.0,0.001]
[1725387219848,1.06880243,57853.0,57852.0,0.002]
[1725387220356,0.91490464,57853.0,57852.0,0.002]
[1725387221144,0.08646,57844.0,57843.0,0.00025928]
[1725387221354,0.09347049,57844.0,57843.0,0.32672128]
[1725387221546,0.0404,57844.0,57843.0,0.32672128]
[1725387222837,0.0404,57844.0,57843.0,0.08672128]
[1725387223037,0.2804,57844.0,57843.0,0.08672128]
[1725387223451,0.2804,57844.0,57843.0,0.08772128]
[1725387223745,0.36686,57844.0,57843.0,0.08772128]
[1725387224048,0.36786,57844.0,57843.0,0.00125928]
[1725387224647,0.45432,57844.0,57843.0,0.00125928]
[1725387224944,0.36886,57844.0,57843.0,0.00125928]
[1725387225747,0.37086,57844.0,57843.0,0.00225928]
[1725387226138,0.12886,57844.0,57843.0,0.08772128]
[1725387226346,0.0444,57844.0,57843.0,0.08872128]
[1725387226746,0.0424,57844.0,57843.0,0.08772128]
[1725387226952,0.0444,57844.0,57843.0,0.08872128]
[1725387227947,0.0434,57844.0,57843.0,0.08872128]
[1725387228247,0.0434,57844.0,57843.0,0.17518328]
[1725387228653,0.0434,57844.0,57843.0,0.17418328]
[1725387229050,0.0424,57844.0,57843.0,0.17418328]
[1725387229547,0.25630271,57844.0,57843.0,0.17318328]
[1725387229746,0.13781151,57844.0,57843.0,0.17318328]
[1725387230051,0.25629565,57844.0,57843.0,0.08672128]
[1725387230348,1.61788557,57844.0,57843.0,0.00025928]
[1725387230554,1.49138864,57844.0,57843.0,0.00025928]
[1725387230745,1.44904811,57844.0,57843.0,0.00025928]
[1725387231640,1.49139383,57844.0,57843.0,0.00025928]
[1725387232155,1.49539383,57844.0,57843.0,0.00125928]
[1725387232540,1.40893383,57844.0,57843.0,0.00125928]
[1725387232740,0.80893383,57844.0,57843.0,0.00125928]
[1725387232947,0.80893383,57844.0,57843.0,0.00225928]
[1725387233150,0.29029383,57844.0,57843.0,0.00225928]
[1725387233343,0.18593686,57844.0,57843.0,0.08872128]
[1725387233651,0.74692208,57844.0,57843.0,0.08872128]
[1725387233843,0.80893921,57844.0,57843.0,0.08872128]
[1725387234746,0.80893921,57844.0,57843.0,0.00225928]
[1725387234948,0.97305399,57844.0,57843.0,0.00225928]
[1725387235147,0.76659399,57844.0,57843.0,0.00225928]
[1725387235343,0.85305613,57844.0,57843.0,0.00225928]
[1725387236052,0.76659613,57844.0,57843.0,0.00225928]
[1725387236251,0.85305613,57844.0,57843.0,0.00225928]
[1725387236550,0.73796,57844.0,57843.0,0.00225928]
[1725387236755,0.6515,57844.0,57843.0,0.00225928]
[1725387237555,0.13286,57844.0,57843.0,0.00225928]
[1725387237856,0.6515,57844.0,57843.0,0.00225928]
[1725387238059,0.13286,57844.0,57843.0,0.00225928]
[1725387238244,0.22376,57844.0,57843.0,0.00225928]
[1725387238544,0.31022,57844.0,57843.0,0.00225928]
[1725387238743,0.22376,57844.0,57843.0,0.00225928]
[1725387239345,0.31022,57844.0,57843.0,0.00225928]
[1725387239749,1.25594,57844.0,57836.0,0.05179765]
[1725387239948,0.172962,57830.0,57828.0,0.03475244]
[1725387240148,0.172962,57830.0,57819.0,3.24668]
[1725387240149,0.622,57829.0,57819.0,3.24668]
[1725387240360,0.326896,57820.0,57819.0,3.23668]
[1725387241162,0.845736,57820.0,57819.0,3.23668]
[1725387241457,0.86287758,57820.0,57819.0,3.23668]
[1725387242248,0.86187758,57820.0,57819.0,3.23668]
[1725387242454,2.07917358,57820.0,57819.0,3.23668]
[1725387242648,2.08317358,57820.0,57819.0,3.23768]
[1725387242851,2.02717358,57820.0,57819.0,3.23868]
[1725387243361,2.02817358,57820.0,57819.0,3.23868]
[1725387244854,2.01417358,57820.0,57819.0,3.23768]
[1725387245058,2.03717358,57820.0,57819.0,3.23068]
[1725387245561,1.35954758,57820.0,57819.0,3.23068]
[1725387245967,2.04604358,57820.0,57819.0,3.23068]
[1725387246275,1.95954758,57820.0,57819.0,2.31286083]
[1725387246562,0.82670758,57820.0,57819.0,2.31186083]
[1725387246962,0.84070758,57820.0,57819.0,2.31186083]
[1725387247153,1.95954758,57820.0,57819.0,2.31186083]
[1725387247562,2.04604358,57820.0,57819.0,2.2390553]
[1725387247751,2.03717358,57820.0,57819.0,2.21693579]
[1725387248258,2.03179688,57820.0,57819.0,2.21693579]
[1725387248460,2.13229288,57820.0,57819.0,1.63793579]
[1725387248663,2.04579688,57820.0,57819.0,1.62202951]
[1725387248868,2.03179688,57820.0,57819.0,1.62202951]
[1725387249169,2.04579688,57820.0,57819.0,1.60123951]
[1725387249373,2.03717358,57820.0,57819.0,1.50479878]
[1725387249559,2.03717358,57820.0,57819.0,1.4727436]
[1725387249758,2.03717358,57820.0,57819.0,1.4402056]
[1725387249759,2.13219717,57820.0,57819.0,1.4402056]
[1725387249963,2.24219717,57820.0,57819.0,1.4402056]
[1725387250160,2.23366958,57820.0,57819.0,1.4402056]
[1725387250358,2.23366958,57820.0,57819.0,1.4322056]
[1725387250764,2.24229067,57820.0,57819.0,1.4322056]
[1725387251064,2.15579467,57820.0,57819.0,1.4322056]
[1725387251669,2.20889983,57820.0,57819.0,1.4322056]
[1725387252072,2.19489983,57820.0,57819.0,1.4312056]
[1725387252269,2.20889983,57820.0,57819.0,1.4322056]
[1725387252473,2.19489983,57820.0,57819.0,1.4322056]
[1725387252678,2.19489983,57820.0,57819.0,1.4312056]
[1725387252858,2.20889983,57820.0,57819.0,1.4322056]
[1725387253871,2.29539583,57820.0,57819.0,1.4322056]
[1725387254266,2.20889983,57820.0,57819.0,1.4322056]
[1725387254666,2.12240383,57820.0,57819.0,1.4322056]
[1725387254967,0.51496267,57820.0,57819.0,1.4322056]
[1725387255167,0.84145867,57820.0,57819.0,1.4322056]
[1725387257472,0.17416267,57820.0,57819.0,1.5187036]
[1725387259468,0.16554158,57820.0,57819.0,1.5187036]
[1725387263271,0.16554158,57820.0,57819.0,1.6052016]
[1725387266568,0.1484,57820.0,57819.0,1.6916996]
[1725387266771,0.1484,57820.0,57819.0,2.2105396]
[1725387266977,0.00025928,57825.0,57824.0,0.25947]
[1725387267172,0.00025928,57825.0,57824.0,0.77378]
[1725387268566,0.00125928,57825.0,57824.0,0.77378]
[1725387268874,0.00125928,57825.0,57824.0,0.75678]
[1725387269074,0.00125928,57825.0,57824.0,0.76278]
[1725387269272,0.00125928,57825.0,57824.0,0.76678]
[1725387270179,0.00125928,57825.0,57824.0,0.07949]
[1725387270373,0.28423728,57825.0,57824.0,0.01]
[1725387270680,0.97832628,57825.0,57824.0,0.008]
[1725387270974,0.89183728,57825.0,57824.0,0.004]
[1725387271475,0.80534828,57825.0,57824.0,0.003]
[1725387271975,0.28654828,57825.0,57824.0,0.003]
[1725387272280,0.28654828,57825.0,57824.0,0.002]
[1725387273178,0.19674828,57825.0,57824.0,0.08849]
[1725387273680,0.19674828,57825.0,57824.0,0.002]
[1725387274184,0.20174828,57825.0,57824.0,0.002]
[1725387274484,0.20174828,57825.0,57824.0,0.001]
[1725387274674,0.20274828,57825.0,57824.0,0.002]
[1725387275276,0.65003728,57825.0,57824.0,0.002]
[1725387275476,0.170992,57820.0,57819.0,1.4302056]
[1725387275678,0.882192,57820.0,57819.0,1.4302056]
[1725387276277,0.968692,57820.0,57819.0,1.4302056]
[1725387277080,0.967692,57820.0,57819.0,1.4302056]
[1725387277278,0.881196,57820.0,57819.0,1.4302056]
[1725387277872,0.887196,57820.0,57819.0,1.4312056]
[1725387278071,0.887196,57820.0,57819.0,1.5177036]
[1725387278673,0.887196,57820.0,57819.0,1.5187036]
[1725387278674,0.890196,57820.0,57819.0,1.5187036]
[1725387278886,0.890196,57820.0,57819.0,1.4322056]
[1725387279183,0.4802,57820.0,57819.0,1.7587036]
[1725387279378,0.4772,57820.0,57819.0,1.7587036]
[1725387279586,0.13752826,57820.0,57819.0,2.2060016]
[1725387279779,0.13752826,57820.0,57819.0,3.3248416]
[1725387279780,0.0104,57820.0,57819.0,3.3248416]
[1725387279978,0.0104,57820.0,57819.0,3.2383436]
[1725387280178,0.0104,57820.0,57819.0,3.0083436]
[1725387280387,0.0104,57820.0,57819.0,3.6083436]
[1725387280587,0.0104,57820.0,57819.0,3.6948416]
[1725387281086,0.0104,57820.0,57819.0,3.7807416]
[1725387281679,0.0104,57820.0,57819.0,2.8542436]
[1725387283180,0.24,57824.0,57823.0,0.086492]
[1725387284286,0.24,57824.0,57823.0,0.15551052]
[1725387284478,0.243,57824.0,57823.0,0.15551052]
[1725387284982,0.003,57824.0,57823.0,0.15551052]
[1725387285185,0.003,57824.0,57823.0,0.326492]
[1725387285387,0.00025928,57825.0,57823.0,0.24]
[1725387285589,0.00025928,57825.0,57824.0,0.17298]
[1725387285985,0.00025928,57825.0,57824.0,0.60529]
[1725387287083,0.00025928,57825.0,57824.0,0.08649]
[1725387287480,0.32674828,57825.0,57824.0,0.08649]
[1725387288386,0.32674828,57825.0,57824.0,0.08849]
[1725387288584,0.32674828,57825.0,57824.0,0.15752593]
[1725387288897,0.32774828,57825.0,57824.0,0.15752593]
[1725387289090,0.32774828,57825.0,57824.0,0.08649]
[1725387289395,0.08649,57824.0,57822.0,0.06903593]
[1725387289589,0.086892,57823.0,57822.0,0.06903593]
[1725387289802,0.086892,57823.0,57819.0,1.5177426]
[1725387289989,0.086892,57823.0,57819.0,1.5167026]
[1725387290183,0.0004,57823.0,57819.0,1.4302056]
[1725387290384,0.326896,57820.0,57819.0,1.4302056]
[1725387290590,0.416896,57820.0,57819.0,1.4302056]
[1725387291793,0.417896,57820.0,57819.0,1.4302056]
[1725387292099,0.416896,57820.0,57819.0,1.4302056]
[1725387292392,0.417896,57820.0,57819.0,1.4322056]
[1725387294985,0.414392,57820.0,57819.0,1.4322056]
[1725387295700,0.524392,57820.0,57819.0,1.4322056]
[1725387295912,2.090528,57820.0,57819.0,1.3387101]
[1725387296087,2.200528,57820.0,57819.0,1.3387101]
[1725387296396,2.200528,57820.0,57819.0,0.5620901]
[1725387296693,2.200528,57820.0,57819.0,0.53646239]
[1725387297402,2.200528,57820.0,57819.0,0.50981239]
[1725387297791,2.200528,57820.0,57819.0,0.31462539]
[1725387297792,2.287024,57820.0,57819.0,0.31462539]
[1725387298099,2.287024,57820.0,57819.0,0.12519339]
[1725387298499,2.295518,57820.0,57819.0,0.12519339]
[1725387298694,2.295518,57820.0,57819.0,0.11157239]
[1725387300302,2.099022,57820.0,57819.0,0.11157239]
[1725387301603,2.113022,57820.0,57819.0,0.11157239]
[1725387301799,0.912192,57820.0,57819.0,0.10657239]
[1725387302004,0.83446389,57820.0,57819.0,0.10657239]
[1725387302204,0.82046389,57820.0,57819.0,0.10557239]
[1725387302507,0.83446389,57820.0,57819.0,0.10657239]
[1725387303901,0.82946389,57820.0,57819.0,0.10657239]
[1725387304103,0.91395989,57820.0,57819.0,0.10757239]
[1725387305204,0.90195989,57820.0,57819.0,0.10657239]
[1725387305397,0.91395989,57820.0,57819.0,0.10757239]
[1725387305899,1.00395989,57820.0,57819.0,0.10757239]
[1725387307100,0.99195989,57820.0,57819.0,0.10657239]
[1725387307300,1.00195989,57820.0,57819.0,0.10757239]
[1725387308408,0.99195989,57820.0,57819.0,0.10657239]
[1725387308597,0.91546389,57820.0,57819.0,0.10657239]
[1725387308803,0.91646389,57820.0,57819.0,0.10757239]
[1725387309004,0.38982287,57820.0,57819.0,0.19407039]
[1725387309206,0.3812,57820.0,57819.0,0.19407039]
[1725387310213,0.39101851,57820.0,57819.0,0.43407039]
[1725387310402,0.39101851,57820.0,57819.0,1.55191039]
[1725387310403,0.3722,57820.0,57819.0,1.55191039]
[1725387310707,0.3702,57820.0,57819.0,0.43307039]
[1725387310914,0.3812,57820.0,57819.0,0.19407039]
[1725387311312,0.827696,57820.0,57819.0,0.10757239]
[1725387311516,0.914192,57820.0,57819.0,0.10757239]
[1725387311706,0.827696,57820.0,57819.0,0.10757239]
[1725387312909,0.587696,57820.0,57819.0,0.10757239]
[1725387314908,0.674192,57820.0,57819.0,0.10757239]
[1725387315214,1.128592,57820.0,57819.0,0.10757239]
[1725387318416,1.034992,57820.0,57819.0,0.10757239]
[1725387320010,0.948496,57820.0,57819.0,0.10757239]
[1725387320420,1.034992,57820.0,57819.0,0.10757239]
[1725387323722,1.121488,57820.0,57819.0,0.10757239]
[1725387325115,1.034992,57820.0,57819.0,0.10757239]
[1725387325322,1.121488,57820.0,57819.0,0.10757239]
[1725387327717,0.948496,57820.0,57819.0,0.10757239]
[1725387328022,0.3812,57820.0,57819.0,0.62641239]
[1725387328219,0.3812,57820.0,57819.0,1.68291039]
[1725387328420,0.0204,57820.0,57819.0,2.04371039]
[1725387328719,0.3608,57831.0,57824.0,0.08649]
[1725387328915,0.24,57836.0,57824.0,1.04729]
[1725387328916,0.244,57836.0,57824.0,1.04729]
[1725387329119,0.244,57836.0,57824.0,1.56609]
[1725387329120,0.01685371,57832.0,57824.0,1.56609]
[1725387329316,0.6008,57839.0,57835.0,0.086473]
[1725387329515,0.6108,57839.0,57836.0,0.0897]
[1725387330113,0.62809786,57839.0,57836.0,0.0897]
[1725387330414,0.61809786,57839.0,57836.0,0.0897]
[1725387330621,0.01729786,57839.0,57838.0,0.086469]
[1725387330927,0.24,57841.0,57838.0,0.086469]
[1725387331223,0.36,57841.0,57838.0,0.086469]
[1725387331417,0.12,57841.0,57838.0,0.086469]
[1725387331616,0.009,57839.0,57838.0,0.086469]
[1725387333424,0.00867861,57843.0,57838.0,0.088469]
[1725387333613,0.12,57843.0,57838.0,0.088469]
[1725387333920,0.00855015,57842.0,57838.0,0.087469]
[1725387334125,0.00855015,57842.0,57838.0,0.088469]
[1725387334126,0.07855015,57842.0,57838.0,0.088469]
[1725387334422,0.07,57842.0,57841.0,0.086465]
[1725387335814,0.07,57842.0,57841.0,1.205105]
[1725387336215,0.004,57852.0,57845.0,0.086459]
[1725387336420,0.004,57855.0,57845.0,0.086459]
[1725387336619,0.24,57857.0,57851.0,0.24]
[1725387336827,0.3608,57858.0,57857.0,0.086441]
[1725387337015,0.37793977,57858.0,57857.0,0.086441]
[1725387337418,0.01713977,57858.0,57857.0,0.326441]
[1725387337613,0.086427,57867.0,57857.0,0.326441]
[1725387337614,0.326427,57867.0,57860.0,0.086436]
[1725387338031,0.086429,57865.0,57860.0,0.086436]
[1725387338229,0.3608,57866.0,57863.0,0.086431]
[1725387338424,0.24,57864.0,57863.0,0.086431]
[1725387339026,0.27,57864.0,57863.0,0.086431]
[1725387339928,0.27,57864.0,57860.0,0.086436]
[1725387340123,0.27,57864.0,57863.0,0.001]
[1725387341326,0.27,57864.0,57863.0,0.002]
[1725387342028,0.08305896,57864.0,57863.0,0.088432]
[1725387342233,0.37305876,57864.0,57863.0,0.001]
[1725387342429,0.37948976,57864.0,57863.0,0.001]
[1725387343128,0.29305876,57864.0,57863.0,0.001]
[1725387343531,0.29305876,57864.0,57863.0,0.002]
[1725387343932,0.29305876,57864.0,57863.0,0.001]
[1725387344132,0.35305876,57864.0,57858.0,0.00025928]
[1725387344439,0.447638,57859.0,57858.0,0.00025928]
[1725387344730,0.74069676,57859.0,57858.0,0.00025928]
[1725387345622,0.91066141,57859.0,57858.0,0.00125928]
[1725387345827,0.74069676,57859.0,57858.0,0.00125928]
[1725387346029,0.65425876,57859.0,57858.0,0.00125928]
[1725387346224,0.8242184,57859.0,57858.0,0.00125928]
[1725387346626,0.8242184,57859.0,57858.0,0.00225928]
[1725387346829,0.4634184,57859.0,57858.0,0.08769928]
[1725387347036,0.29346473,57859.0,57858.0,0.08869928]
[1725387349040,0.29346473,57859.0,57858.0,0.08769928]
[1725387349534,0.29346473,57859.0,57858.0,0.08669928]
[1725387349939,0.2404,57859.0,57858.0,0.08669928]
[1725387350129,0.2404,57859.0,57858.0,0.08769928]
[1725387350642,0.2404,57859.0,57858.0,0.00025928]
[1725387350834,0.3575086,57859.0,57858.0,0.00125928]
[1725387352340,0.3575086,57859.0,57847.0,0.004]
[1725387352341,1.5460286,57859.0,57847.0,0.004]
[1725387352548,0.3608,57848.0,57842.0,0.004]
[1725387352732,0.3608,57848.0,57835.0,0.0931]
[1725387352733,0.3612,57843.0,57838.0,0.24]
[1725387352933,0.0004,57839.0,57838.0,0.24]
[1725387353127,0.3608,57843.0,57838.0,0.24]
[1725387353334,0.36068,57843.0,57838.0,0.24]
[1725387353541,0.3578,57843.0,57838.0,0.24]
[1725387354938,0.3578,57843.0,57842.0,0.086463]
[1725387355745,0.3618,57843.0,57842.0,0.086463]
[1725387356042,0.004,57843.0,57842.0,0.086463]
[1725387356236,0.3618,57843.0,57842.0,0.086463]
[1725387356543,0.3678,57843.0,57842.0,0.087463]
[1725387356735,0.4828,57843.0,57842.0,0.087463]
[1725387357732,0.58643858,57843.0,57842.0,0.001]
[1725387358239,0.67290058,57843.0,57842.0,0.001]
[1725387358932,0.086472,57836.0,57835.0,0.00025928]
[1725387359140,0.69512066,57836.0,57835.0,0.00025928]
[1725387359632,0.79512066,57836.0,57835.0,0.00025928]
[1725387360057,2.08031266,57836.0,57835.0,0.00025928]
[1725387360340,0.24,57829.0,57824.0,0.05165447]
[1725387360535,0.6012,57825.0,57822.0,0.05165447]
[1725387360732,0.08649,57824.0,57822.0,0.05165447]
[1725387360960,0.08649,57824.0,57819.0,0.10557239]
[1725387360961,0.0004,57823.0,57821.0,0.05165447]
[1725387361144,0.0004,57823.0,57819.0,0.10557239]
[1725387361145,0.086496,57820.0,57819.0,0.10557239]
[1725387361339,0.487696,57820.0,57819.0,0.10557239]
[1725387361535,0.487296,57820.0,57819.0,0.10557239]
[1725387362146,0.4008,57820.0,57819.0,0.10557239]
[1725387362844,0.041,57820.0,57819.0,0.10657239]
[1725387363234,0.37773599,57825.0,57824.0,0.08649]
[1725387363435,0.3608,57825.0,57824.0,0.32649]
[1725387363634,0.3608,57825.0,57824.0,0.08649]
[1725387364536,0.3708,57825.0,57824.0,0.32749]
[1725387365245,0.01725617,57829.0,57825.0,0.086488]
[1725387366841,0.02225617,57829.0,57825.0,0.086488]
[1725387367241,0.32225617,57829.0,57821.0,0.086494]
[1725387367449,0.32225617,57829.0,57820.0,0.086496]
[1725387367450,0.0004,57822.0,57820.0,0.086496]
[1725387368348,0.3004,57822.0,57821.0,0.001]
[1725387368538,0.496893,57822.0,57821.0,0.001]
[1725387369245,0.497893,57822.0,57819.0,0.10557239]
[1725387369543,0.0004,57820.0,57819.0,0.10557239]
[1725387369733,0.0304,57820.0,57819.0,0.10557239]
[1725387370349,0.0304,57820.0,57819.0,0.10657239]
[1725387370943,0.0294,57820.0,57819.0,0.10657239]
[1725387371143,0.115896,57820.0,57819.0,0.10657239]
[1725387371838,0.122896,57820.0,57819.0,0.10757239]
[1725387372141,0.130896,57820.0,57819.0,0.10757239]
[1725387372544,0.491696,57820.0,57819.0,0.10757239]
[1725387372933,0.578192,57820.0,57819.0,0.10757239]
[1725387373243,0.08651,57811.0,57810.0,0.004]
[1725387373447,0.7108,57811.0,57803.0,0.086521]
[1725387373632,0.3,57805.0,57803.0,0.086521]
[1725387373839,0.299,57805.0,57803.0,0.086521]
[1725387374448,0.299,57809.0,57804.0,0.08652]
[1725387374648,0.299,57809.0,57801.0,0.1811]
[1725387374649,0.299,57809.0,57805.0,0.086518]
[1725387374943,0.00025928,57810.0,57801.0,0.4811]
[1725387375138,0.00025928,57810.0,57802.0,0.41245447]
[1725387375443,0.00025928,57810.0,57809.0,0.086513]
[1725387376134,0.00125928,57810.0,57809.0,0.086513]
[1725387376644,0.00525928,57810.0,57809.0,0.086513]
[1725387377245,0.00565928,57810.0,57809.0,0.086513]
[1725387378734,0.00465928,57810.0,57809.0,0.086513]
[1725387378936,0.00665928,57810.0,57809.0,0.691986]
[1725387379246,0.00665928,57810.0,57809.0,0.991986]
[1725387379549,0.00665928,57810.0,57809.0,0.605473]
[1725387379951,0.00665928,57810.0,57809.0,0.086513]
[1725387380341,0.00365928,57810.0,57809.0,0.086513]
[1725387380739,0.00165928,57810.0,57809.0,0.087513]
[1725387381444,0.38817028,57810.0,57809.0,0.086513]
[1725387381647,0.38817028,57810.0,57809.0,0.087513]
[1725387381850,0.52468128,57810.0,57809.0,0.001]
[1725387382349,0.43817028,57810.0,57809.0,0.001]
[1725387383042,0.05265928,57810.0,57809.0,0.087513]
[1725387383248,0.00265928,57810.0,57809.0,0.087513]
[1725387383643,0.00065928,57810.0,57809.0,0.087513]
[1725387383841,0.00465928,57810.0,57809.0,0.087513]
[1725387384041,0.00465928,57810.0,57809.0,0.086513]
[1725387384451,0.00465928,57810.0,57809.0,0.991986]
[1725387384656,0.00065928,57810.0,57809.0,1.678499]
[1725387384848,0.00365928,57810.0,57809.0,1.678499]
[1725387385349,0.00465928,57810.0,57809.0,1.678499]
[1725387386048,0.00465928,57810.0,57809.0,0.691986]
[1725387386552,0.00465928,57810.0,57809.0,0.086513]
[1725387386850,0.00265928,57810.0,57809.0,0.086513]
[1725387387046,0.08817028,57810.0,57809.0,0.087513]
[1725387387250,0.00065928,57810.0,57809.0,0.087513]
[1725387387548,0.00165928,57810.0,57809.0,0.087513]